Workbook

Sheet Sheet1
A1: INSTRUCTIONS: Use this form when a single information collection document involves multiple reporting and recordkeeping requirements. The totals of the figures in cols. should be entered in item 13 of OMB-83-I: cols. (D) &/or (I) = 13a (respondent is only counted once); cols. F & I = 13b; cols. H & K = 13c. (F)Total/(D)Total = (E)Average (H)Total/(F)Total = (G)Average (K)Total/(I)Total = (J)Average NOTE: The columns will calculate automatically. If Col. E's response is something other than annually, i.e., 1/6 years, list as "1/6" & decimal will display. | I1: TITLE OF INFORMATION COLLECTION DOCUMENT | O1: OMB NO. | P1: 0560-0289
I3: Organic Certification Cost Share Program (OCCSP)
O4: DATE PREPARED
O5: 2026-03-17
A10: IDENTIFICATION OF REPORTING OR RECORDKEEPING REQUIREMENT | H10: ANNUAL BURDEN
H12: REPORTS | N12: RECORDS | Q12: RESPONDENT COST | S12: Revised Annual Burden hours
L14: TOTAL BURDEN HOURS | P14: TOTAL | S14: Previously Approved Burden Hours | T14: Difference Due to Adjustments | U14: Differences Due to Program Changes
G15: FORMS NO (S) | H15: NO. OF | I15: NO OF | J15: TOTAL ANNUAL | K15: HOURS | L15: (Col. F x G) | N15: NO. OF | O15: ANNUAL | P15: RECORD- | Q15: COST | R15: TOTAL
A16: SECTION OF | B16: DESCRIPTION | G16: (If "none" | H16: RESPONDENTS | I16: RESPONSES | J16: RESPONSES | K16: PER | L16: (H) | N16: RECORD- | O16: HOURS PER | P16: KEEPING HOURS | Q16: PER | R16: COST
A17: REGS. | G17: so state) | I17: PER | J17: (Col. D x E) | K17: RESPONSE | N17: KEEPERS | O17: RECORD- | P17: (Col. I x J) | Q17: HOUR | R17: (Col. H x L)
I18: RESPONDENT | L18: EXEMPT | M18: NON-EXEMPT | O18: KEEPER
A19: (A) | B19: (B) | G19: (C) | H19: (D) | I19: (E) | J19: (F) | K19: (G) | N19: (I) | O19: (J) | P19: (K) | Q19: (L) | R19: (M) | V19: Agency Notes
A20: N/A | B20: Grant Agreement Face sheets (State Agencies) | G20: none | H20: 0 | I20: 0 | J20: =SUM(H20*I20) -> 0 | K20: 0 | M20: =SUM(J20*K20) -> 0 | Q20: 0 | R20: =SUM(M20*Q20) -> 0 | S20: 68 | U20: =M20-S20 -> -68 | V20: Use of face sheets has been discontinued, replaced with ADS-093
A21: N/A | B21: Notice of Grant and Agreement Award (State Agencies) | G21: ADS-093 | H21: 30 | I21: 1 | J21: =H21*I21 -> 30 | K21: 1 | M21: =J21*K21 -> 30 | Q21: 40.05 | R21: =M21*Q21 -> 1201.5 | S21: 0 | U21: =M21-S21 -> 30 | V21: This form replaces Grant Agreement Face sheet
A22: N/A | B22: Request for Advance of Reimbursement (State Agencies) (OMB No. 4040-0012) | G22: SF-270 | H22: 30 | I22: 2 | J22: =H22*I22 -> 60 | K22: 1 | L22: =J22*K22 -> 60 | Q22: 40.05 | R22: =L22*Q22 -> 2403 | S22: 204 | T22: =L22-S22 -> -144 | V22: Hours moved from non-exempt to exempt, respondents adjusted from 34 to 30, responses per respondent adjusted from 6 to 2
A23: N/A | B23: Application for Federal Assistance (State Agencies) (OMB No. 4040-0004) | G23: SF-424 | H23: 30 | I23: 1 | J23: 30 | K23: 1 | L23: =J23*K23 -> 30 | Q23: 40.05 | R23: =L23*Q23 -> 1201.5 | S23: 34 | T23: =L23-S23 -> -4 | V23: Hours moved from non-exempt to exempt, respondents adjusted from 34 to 30
A24: N/A | B24: Federal Financial Report (State Agencies) (OMB No 4040-0014) | G24: SF-425 | H24: 30 | I24: 1 | J24: 30 | K24: 1 | L24: 30 | Q24: 40.05 | R24: 1201.5 | S24: 51 | T24: -21 | V24: Hours moved from non-exempt to exempt, respondents adjusted from 34 to 30, hours adjusted from 1.5 hours to 1 hour
A25: N/A | B25: Narrative Report (State Agencies) | G25: none | H25: 30 | I25: 1 | J25: 30 | K25: 1 | M25: 30 | Q25: 40.05 | R25: =M25*Q25 -> 1201.5 | S25: 34 | T25: =M25-S25 -> -4 | V25: Respondents adjusted from 34 to 30
A26: N/A | B26: Spreadsheet of Operations Reimbursed (State Agencies) | G26: none | H26: 30 | I26: 1 | J26: 30 | K26: 2 | M26: 60 | Q26: 40.05 | R26: =M26*Q26 -> 2403 | S26: 68 | T26: =M26-S26 -> -8 | V26: Respondents adjusted from 34 to 30
A27: N/A | B27: Request for Taxpayer ID and Cert. W-9 | G27: AD-2047 or W-9 | H27: 0 | I27: 0 | J27: 0 | K27: 0 | M27: 0 | Q27: 0 | R27: 0 | S27: 66 | U27: =M27-S27 -> -66 | V27: Use of W-9 was previously reported on this line and separte line item below. This line item has been removed and all use of AD-2047 and W-9 is reported separately below.
A28: N/A | B28: OCCSP Appliciation (producers and handlers) | G28: CCC-884 | H28: 12000 | I28: 1 | J28: =SUM(H28*I28) -> 12000 | K28: 1 | M28: =SUM(J28*K28) -> 12000 | Q28: 60.63 | R28: 727560 | S28: 15625 | T28: -3625 | V28: Respondents adjusted from 15,625 to 12,000 to represent participation in recent years
A29: N/A | B29: Documentation - Copy of organic certification (producers and handlers) | G29: Documentation | H29: 12000 | I29: 1 | J29: 12000 | K29: 0.0835 | M29: 1002 | Q29: 60.63 | R29: 60751.26 | S29: 15625 | T29: -14623 | V29: Respondents adjusted from 15,625 to 12,000 to represent participation in recent years, time per response adjusted from 1 hour to 5 minutes (applicant is only providing a copy of certificate)
A30: N/A | B30: Documentation - Itemized invoices of eligible expenses (producers and handlers) | G30: Documentation | H30: 12000 | I30: 1 | J30: 12000 | K30: 1 | M30: 12000 | Q30: 60.63 | R30: 727560 | S30: 15625 | T30: -3625 | V30: Respondents adjusted from 15,625 to 12,000 to represent participation in recent years
A31: N/A | B31: Request for Taxpayer Identification Number and Certification (producers and handlers) | G31: W-9 | H31: 7800 | I31: 1 | J31: 7800 | K31: 0.5 | M31: 3900 | Q31: 60.63 | R31: =M31*Q31 -> 236457 | S31: 15625 | T31: -11725 | V31: Time to complete form has been corrected, respondents have been adjusted to reflect number who apply through State Agencies (not used for respondents who apply through FSA county offices)
A32: N/A | B32: Customer Data Worksheet (producers and handlers) (OMB No. 0560-0265) | G32: AD-2047 | H32: 180 | I32: 1 | J32: =H32*I32 -> 180 | K32: 0.0501 | M32: =SUM(J32*K32) -> 9.018 | Q32: 60.63 | R32: =M32*Q32 -> 546.76134 | S32: 0 | T32: 9.018 | V32: Respondents represent producers/handlers who apply through FSA county offices and do not already have this on file (not used for respondents who apply through State Agencies)
A33: N/A | B33: Direct Deposit Sign-up form (farms) OMB No. 1530-0006) | G33: SF-1199A | H33: 0 | I33: 0 | J33: 0 | K33: 0 | M33: 0 | Q33: 0 | R33: 0 | S33: 15625 | U33: =M33-S33 -> -15625 | V33: This form has been replaced with SF-3881
A34: N/A | B34: ACH Vendor/Miscellaneous Payment Enrollment Form (producers and handlers) (OMB No. 1530-0069) | G34: SF-3881 | H34: =0.05*H30 -> 600 | I34: 1 | J34: =SUM(H34*I34) -> 600 | K34: 0.25 | L34: 150 | Q34: 60.63 | R34: =L34*Q34 -> 9094.5 | S34: 0 | T34: 0 | U34: 150 | V34: This form replaces SF-1199A. Respondents represent producers/handlers applying through FSA COFs who do not already have this form on file.
J35: =SUM(J20:J34) -> 44790 | M35: =SUM(M20:M34) -> 29031.018 | P35: =SUM(P20:P33) -> 0 | R35: =SUM(R20:R34) -> 1771581.521 | S35: =SUM(S20:S34) -> 78650 | T35: =SUM(T20:T34) -> -33769.982 | U35: =SUM(U20:U34) -> -15579
B36: TOTAL OF ALL PAGES | J36: =SUM(J35) -> 44790 | M36: =SUM(M35) -> 29031.018 | P36: =SUM(P35) -> 0 | R36: =SUM(R35) -> 1771581.521
A37: TOTAL - COLUMNS "F" AND "I" = OMB 83-I, 13b; COLUMNS "H" AND "K" = OMB 83-I, 13c | J37: =SUM(J36+N36) -> 44790 | M37: =SUM(M36+P36) -> 29031.018
A39: Total Respondents | C39: =H21+H28 -> 12030
A40: Responses per Respondent | C40: =J37/C39 -> 3.72319202
A41: Total hours per Response | C41: =M37/J37 -> 0.6481584729
